[Event "Titled Tuesday Blitz November 14 Late 2023"]
[White "KorolDimitriy75"]
[Black "tandercat"]
[WhiteElo "2345"]
[BlackElo "2062"]
[Result "1-0"]
[Round "8"]
[TimeControl "180+1"]
[Date "2023.11.14"]
[WhiteClock "0:00:08"]
[BlackClock "0:00:00"]
[Board "94"]

1. d4 {[%clk 0:03:00]}  d5 {[%clk 0:02:59]} 2. c4 {[%clk 0:03:01]}  e6 {[%clk 0:03:00]} 3. Nc3 {[%clk 0:03:01]}  a6 {[%clk 0:03:00]} 4. cxd5 {[%clk 0:03:00]}  exd5 {[%clk 0:03:00]} 5. Bf4 {[%clk 0:03:01]}  Nf6 {[%clk 0:02:59]} 6. e3 {[%clk 0:03:01]}  Bd6 {[%clk 0:03:00]} 7. Nge2 {[%clk 0:02:59]}  O-O {[%clk 0:02:55]} 8. Qc2 {[%clk 0:02:50]}  Re8 {[%clk 0:02:51]} 9. Bxd6 {[%clk 0:02:48]}  Qxd6 {[%clk 0:02:51]} 10. Ng3 {[%clk 0:02:47]}  c5 {[%clk 0:02:47]} 11. dxc5 {[%clk 0:02:38]}  Qxc5 {[%clk 0:02:45]} 12. O-O-O {[%clk 0:01:44]}  Nc6 {[%clk 0:02:35]} 13. Nxd5 {[%clk 0:01:39]}  Qxc2+ {[%clk 0:02:19]} 14. Kxc2 {[%clk 0:01:39]}  Nxd5 {[%clk 0:02:19]} 15. Bc4 {[%clk 0:01:18]}  Be6 {[%clk 0:02:13]} 16. Kb1 {[%clk 0:00:53]}  Nf6 {[%clk 0:01:56]} 17. Bxe6 {[%clk 0:00:45]}  Rxe6 {[%clk 0:01:56]} 18. Rd2 {[%clk 0:00:44]}  g6 {[%clk 0:01:55]} 19. Rhd1 {[%clk 0:00:43]}  Ree8 {[%clk 0:01:43]} 20. Rd6 {[%clk 0:00:38]}  Kg7 {[%clk 0:01:40]} 21. a3 {[%clk 0:00:21]}  Rad8 {[%clk 0:01:40]} 22. Kc2 {[%clk 0:00:15]}  Rxd6 {[%clk 0:01:39]} 23. Rxd6 {[%clk 0:00:16]}  Rd8 {[%clk 0:01:36]} 24. Rxd8 {[%clk 0:00:16]}  Nxd8 {[%clk 0:01:36]} 25. Kc3 {[%clk 0:00:16]}  Nc6 {[%clk 0:01:35]} 26. Kc4 {[%clk 0:00:16]}  Nd7 {[%clk 0:01:31]} 27. Kd5 {[%clk 0:00:16]}  Kf8 {[%clk 0:01:31]} 28. Kd6 {[%clk 0:00:16]}  Nde5 {[%clk 0:01:23]} 29. Kc7 {[%clk 0:00:14]}  Na5 {[%clk 0:01:20]} 30. Ne4 {[%clk 0:00:08]}  Nec4 {[%clk 0:01:12]} 31. b4 {[%clk 0:00:07]}  Nb3 {[%clk 0:01:07]} 32. Kxb7 {[%clk 0:00:06]}  Nxa3 {[%clk 0:01:08]} 33. Kxa6 {[%clk 0:00:05]}  Ke7 {[%clk 0:01:02]} 34. b5 {[%clk 0:00:06]}  Nc4 {[%clk 0:00:47]} 35. b6 {[%clk 0:00:04]}  Nxb6 {[%clk 0:00:41]} 36. Kxb6 {[%clk 0:00:05]}  Nc1 {[%clk 0:00:42]} 37. Kc5 {[%clk 0:00:04]}  Nd3+ {[%clk 0:00:42]} 38. Kd4 {[%clk 0:00:04]}  Nb4 {[%clk 0:00:39]} 39. h4 {[%clk 0:00:04]}  Nc6+ {[%clk 0:00:39]} 40. Kd3 {[%clk 0:00:03]}  f6 {[%clk 0:00:39]} 41. g3 {[%clk 0:00:03]}  Ke6 {[%clk 0:00:38]} 42. Ke2 {[%clk 0:00:03]}  Ne5 {[%clk 0:00:38]} 43. Nd2 {[%clk 0:00:02]}  Kd5 {[%clk 0:00:38]} 44. Nf3 {[%clk 0:00:03]}  Nc4 {[%clk 0:00:37]} 45. Nd4 {[%clk 0:00:03]}  Nd6 {[%clk 0:00:36]} 46. Kf3 {[%clk 0:00:03]}  Ke5 {[%clk 0:00:36]} 47. Ne2 {[%clk 0:00:02]}  Nc4 {[%clk 0:00:35]} 48. Nf4 {[%clk 0:00:02]}  Nd2+ {[%clk 0:00:34]} 49. Kg2 {[%clk 0:00:02]}  Ne4 {[%clk 0:00:34]} 50. Nd3+ {[%clk 0:00:01]}  Ke6 {[%clk 0:00:33]} 51. f3 {[%clk 0:00:01]}  Nd6 {[%clk 0:00:32]} 52. e4 {[%clk 0:00:01]}  Nc4 {[%clk 0:00:32]} 53. Kf2 {[%clk 0:00:01]}  Nd6 {[%clk 0:00:32]} 54. Nf4+ {[%clk 0:00:01]}  Kf7 {[%clk 0:00:31]} 55. Ke3 {[%clk 0:00:02]}  Nc4+ {[%clk 0:00:30]} 56. Kd4 {[%clk 0:00:03]}  Ne5 {[%clk 0:00:31]} 57. Ke3 {[%clk 0:00:03]}  Nc4+ {[%clk 0:00:32]} 58. Kd4 {[%clk 0:00:03]}  Nd6 {[%clk 0:00:32]} 59. Ke3 {[%clk 0:00:04]}  Ne8 {[%clk 0:00:31]} 60. Nd5 {[%clk 0:00:03]}  Ke6 {[%clk 0:00:30]} 61. Kd4 {[%clk 0:00:04]}  Nd6 {[%clk 0:00:29]} 62. Nf4+ {[%clk 0:00:04]}  Kf7 {[%clk 0:00:28]} 63. Nd5 {[%clk 0:00:05]}  Nb5+ {[%clk 0:00:26]} 64. Ke3 {[%clk 0:00:05]}  Nd6 {[%clk 0:00:26]} 65. g4 {[%clk 0:00:05]}  h6 {[%clk 0:00:25]} 66. Kf4 {[%clk 0:00:05]}  g5+ {[%clk 0:00:24]} 67. hxg5 {[%clk 0:00:05]}  hxg5+ {[%clk 0:00:25]} 68. Ke3 {[%clk 0:00:06]}  Ke6 {[%clk 0:00:24]} 69. Nb4 {[%clk 0:00:06]}  Nc4+ {[%clk 0:00:22]} 70. Kd4 {[%clk 0:00:06]}  Ne5 {[%clk 0:00:23]} 71. Ke3 {[%clk 0:00:06]}  Kd6 {[%clk 0:00:21]} 72. Nd3 {[%clk 0:00:06]}  Nd7 {[%clk 0:00:20]} 73. Ne1 {[%clk 0:00:05]}  Kc5 {[%clk 0:00:20]} 74. Nc2 {[%clk 0:00:06]}  Kc4 {[%clk 0:00:20]} 75. Nd4 {[%clk 0:00:06]}  Kc3 {[%clk 0:00:18]} 76. Ne6 {[%clk 0:00:06]}  Ne5 {[%clk 0:00:16]} 77. Nf8 {[%clk 0:00:06]}  Nc4+ {[%clk 0:00:11]} 78. Ke2 {[%clk 0:00:05]}  Ne5 {[%clk 0:00:11]} 79. Ke3 {[%clk 0:00:05]}  Nc4+ {[%clk 0:00:10]} 80. Ke2 {[%clk 0:00:05]}  Kd4 {[%clk 0:00:07]} 81. Kf2 {[%clk 0:00:04]}  Ke5 {[%clk 0:00:06]} 82. Nd7+ {[%clk 0:00:03]}  Ke6 {[%clk 0:00:06]} 83. Nc5+ {[%clk 0:00:04]}  Ke5 {[%clk 0:00:06]} 84. Nd3+ {[%clk 0:00:04]}  Ke6 {[%clk 0:00:05]} 85. Nb4 {[%clk 0:00:04]}  Ne5 {[%clk 0:00:05]} 86. Nd5 {[%clk 0:00:04]}  Kf7 {[%clk 0:00:04]} 87. Ke3 {[%clk 0:00:04]}  Kg6 {[%clk 0:00:04]} 88. Nc3 {[%clk 0:00:04]}  Kf7 {[%clk 0:00:04]} 89. Ne2 {[%clk 0:00:04]}  Ng6 {[%clk 0:00:05]} 90. Ng3 {[%clk 0:00:04]}  Nf4 {[%clk 0:00:03]} 91. Nh5 {[%clk 0:00:03]}  Ng6 {[%clk 0:00:01]} 92. Kd4 {[%clk 0:00:03]}  Ke6 {[%clk 0:00:02]} 93. Ng7+ {[%clk 0:00:01]}  Kf7 {[%clk 0:00:02]} 94. Nf5 {[%clk 0:00:02]}  Ke6 {[%clk 0:00:02]} 95. Ke3 {[%clk 0:00:02]}  Nh4 {[%clk 0:00:02]} 96. Nd4+ {[%clk 0:00:03]}  Ke5 {[%clk 0:00:02]} 97. Nf5 {[%clk 0:00:03]}  Ke6 {[%clk 0:00:02]} 98. Nxh4 {[%clk 0:00:03]}  gxh4 {[%clk 0:00:03]} 99. f4 {[%clk 0:00:04]}  Kf7 {[%clk 0:00:02]} 100. Kf3 {[%clk 0:00:04]}  Kg6 {[%clk 0:00:03]} 101. Kg2 {[%clk 0:00:04]}  Kh6 {[%clk 0:00:02]} 102. Kh3 {[%clk 0:00:04]}  Kg6 {[%clk 0:00:02]} 103. Kxh4 {[%clk 0:00:05]}  Kh6 {[%clk 0:00:01]} 104. g5+ {[%clk 0:00:05]}  fxg5+ {[%clk 0:00:01]} 105. fxg5+ {[%clk 0:00:06]}  Kg6 {[%clk 0:00:02]} 106. Kg4 {[%clk 0:00:07]}  Kg7 {[%clk 0:00:02]} 107. Kf5 {[%clk 0:00:07]}  Kh8 {[%clk 0:00:00]} 108. g6 {[%clk 0:00:08]} 1-0


[Site "https://www.chess.com"]

[Event "Titled Tuesday Blitz November 14 Late 2023"]
[White "rikchessmx"]
[Black "Martin Barcelo, Carles"]
[BlackFideId "24561444"]
[WhiteElo "2323"]
[BlackElo "2454"]
[Result "1/2-1/2"]
[Round "8"]
[TimeControl "180+1"]
[Date "2023.11.14"]
[WhiteClock "0:00:18"]
[BlackClock "0:01:15"]
[Board "98"]

1. e4 {[%clk 0:03:00]}  Nc6 {[%clk 0:02:54]} 2. d4 {[%clk 0:02:59]}  d6 {[%clk 0:02:54]} 3. f3 {[%clk 0:02:58]}  g6 {[%clk 0:02:54]} 4. Bc4 {[%clk 0:02:57]}  Bg7 {[%clk 0:02:55]} 5. Ne2 {[%clk 0:02:57]}  e6 {[%clk 0:02:54]} 6. Bb3 {[%clk 0:02:57]}  Nge7 {[%clk 0:02:54]} 7. Nbc3 {[%clk 0:02:57]}  d5 {[%clk 0:02:55]} 8. Be3 {[%clk 0:02:57]}  O-O {[%clk 0:02:55]} 9. Qd2 {[%clk 0:02:56]}  Na5 {[%clk 0:02:53]} 10. h4 {[%clk 0:02:54]}  c5 {[%clk 0:02:44]} 11. dxc5 {[%clk 0:02:49]}  Qc7 {[%clk 0:02:38]} 12. Nb5 {[%clk 0:02:46]}  Qc6 {[%clk 0:02:36]} 13. Ned4 {[%clk 0:02:43]}  Qd7 {[%clk 0:02:35]} 14. Qxa5 {[%clk 0:02:41]}  e5 {[%clk 0:02:34]} 15. Ne2 {[%clk 0:02:33]}  a6 {[%clk 0:02:34]} 16. Nc7 {[%clk 0:02:27]}  Nc6 {[%clk 0:02:34]} 17. Qb6 {[%clk 0:02:24]}  d4 {[%clk 0:02:31]} 18. O-O-O {[%clk 0:02:18]}  Rb8 {[%clk 0:02:30]} 19. c3 {[%clk 0:02:07]}  Rd8 {[%clk 0:02:27]} 20. cxd4 {[%clk 0:02:05]}  exd4 {[%clk 0:02:26]} 21. Bg5 {[%clk 0:02:03]}  Rf8 {[%clk 0:02:21]} 22. Nd5 {[%clk 0:02:01]}  Re8 {[%clk 0:02:15]} 23. Nf6+ {[%clk 0:01:55]}  Bxf6 {[%clk 0:02:14]} 24. Bxf6 {[%clk 0:01:56]}  Re6 {[%clk 0:02:15]} 25. e5 {[%clk 0:01:55]}  Re8 {[%clk 0:02:13]} 26. h5 {[%clk 0:01:29]}  Qf5 {[%clk 0:02:11]} 27. Bc2 {[%clk 0:01:25]}  Qe6 {[%clk 0:02:07]} 28. Nxd4 {[%clk 0:01:15]}  Nxd4 {[%clk 0:02:04]} 29. Rxd4 {[%clk 0:01:14]}  Bd7 {[%clk 0:01:59]} 30. hxg6 {[%clk 0:01:13]}  fxg6 {[%clk 0:01:58]} 31. Rf4 {[%clk 0:01:10]}  Qxa2 {[%clk 0:01:56]} 32. Bb3+ {[%clk 0:01:09]}  Qxb3 {[%clk 0:01:55]} 33. Qxb3+ {[%clk 0:01:10]}  Be6 {[%clk 0:01:56]} 34. Qc3 {[%clk 0:01:05]}  Rbc8 {[%clk 0:01:57]} 35. Rfh4 {[%clk 0:01:04]}  h5 {[%clk 0:01:54]} 36. g4 {[%clk 0:00:55]}  b6 {[%clk 0:01:54]} 37. c6 {[%clk 0:00:54]}  Rc7 {[%clk 0:01:52]} 38. Kb1 {[%clk 0:00:46]}  Rec8 {[%clk 0:01:52]} 39. Qe3 {[%clk 0:00:38]}  Rxc6 {[%clk 0:01:50]} 40. Qg5 {[%clk 0:00:38]}  Kf7 {[%clk 0:01:48]} 41. gxh5 {[%clk 0:00:37]}  Bf5+ {[%clk 0:01:48]} 42. Ka1 {[%clk 0:00:36]}  Rc5 {[%clk 0:01:47]} 43. hxg6+ {[%clk 0:00:36]}  Ke6 {[%clk 0:01:47]} 44. b3 {[%clk 0:00:26]}  Ra5+ {[%clk 0:01:43]} 45. Kb2 {[%clk 0:00:23]}  Rc2+ {[%clk 0:01:43]} 46. Kb1 {[%clk 0:00:24]}  Raa2 {[%clk 0:01:30]} 47. Qxf5+ {[%clk 0:00:21]}  Kxf5 {[%clk 0:01:29]} 48. e6 {[%clk 0:00:20]}  Kxf6 {[%clk 0:01:28]} 49. g7 {[%clk 0:00:18]}  Kxg7 {[%clk 0:01:26]} 50. e7 {[%clk 0:00:18]}  Kf7 {[%clk 0:01:22]} 51. Re4 {[%clk 0:00:17]}  Rab2+ {[%clk 0:01:12]} 52. Ka1 {[%clk 0:00:17]}  Ra2+ {[%clk 0:01:13]} 53. Kb1 {[%clk 0:00:17]}  Rab2+ {[%clk 0:01:14]} 54. Ka1 {[%clk 0:00:18]}  Ra2+ {[%clk 0:01:15]} 55. Kb1 {[%clk 0:00:18]} 1/2-1/2


[Site "https://www.chess.com"]

[Event "Titled Tuesday Blitz November 14 Late 2023"]
[White "Cardozo Munar, Carlos Eduardo"]
[Black "Akhayan, Ruben"]
[WhiteFideId "4409477"]
[BlackFideId "204439"]
[WhiteElo "2281"]
[BlackElo "2420"]
[Result "1-0"]
[Round "8"]
[TimeControl "180+1"]
[Date "2023.11.14"]
[WhiteClock "0:01:12"]
[BlackClock "0:00:27"]
[Board "100"]

1. d4 {[%clk 0:03:00]}  Nf6 {[%clk 0:02:57]} 2. Bg5 {[%clk 0:03:00]}  g6 {[%clk 0:02:57]} 3. Bxf6 {[%clk 0:02:59]}  exf6 {[%clk 0:02:57]} 4. g3 {[%clk 0:02:59]}  Bg7 {[%clk 0:02:57]} 5. Bg2 {[%clk 0:03:00]}  O-O {[%clk 0:02:57]} 6. e3 {[%clk 0:03:01]}  d6 {[%clk 0:02:55]} 7. Ne2 {[%clk 0:03:01]}  Re8 {[%clk 0:02:53]} 8. O-O {[%clk 0:03:02]}  Nd7 {[%clk 0:02:54]} 9. c4 {[%clk 0:03:02]}  f5 {[%clk 0:02:54]} 10. b4 {[%clk 0:03:02]}  Nf6 {[%clk 0:02:54]} 11. Nbc3 {[%clk 0:03:01]}  Ne4 {[%clk 0:02:52]} 12. Nxe4 {[%clk 0:03:01]}  fxe4 {[%clk 0:02:52]} 13. Nc3 {[%clk 0:03:02]}  f5 {[%clk 0:02:50]} 14. a4 {[%clk 0:03:01]}  Be6 {[%clk 0:02:46]} 15. Qb3 {[%clk 0:03:00]}  Bf7 {[%clk 0:02:40]} 16. a5 {[%clk 0:02:59]}  a6 {[%clk 0:02:40]} 17. Rfc1 {[%clk 0:02:52]}  Qd7 {[%clk 0:02:30]} 18. Nd5 {[%clk 0:02:52]}  Rac8 {[%clk 0:02:20]} 19. Bf1 {[%clk 0:02:37]}  h5 {[%clk 0:02:11]} 20. b5 {[%clk 0:02:37]}  axb5 {[%clk 0:02:05]} 21. cxb5 {[%clk 0:02:37]}  h4 {[%clk 0:01:43]} 22. Bc4 {[%clk 0:02:35]}  Kh8 {[%clk 0:01:38]} 23. a6 {[%clk 0:02:34]}  bxa6 {[%clk 0:01:36]} 24. bxa6 {[%clk 0:02:35]}  Ra8 {[%clk 0:01:35]} 25. a7 {[%clk 0:02:33]}  f4 {[%clk 0:01:18]} 26. Bb5 {[%clk 0:02:33]}  Qg4 {[%clk 0:01:16]} 27. exf4 {[%clk 0:02:23]}  Rec8 {[%clk 0:01:02]} 28. Bc6 {[%clk 0:02:16]}  h3 {[%clk 0:01:01]} 29. Bxa8 {[%clk 0:02:12]}  Rxa8 {[%clk 0:00:59]} 30. Ra3 {[%clk 0:01:25]}  e3 {[%clk 0:00:56]} 31. Nxe3 {[%clk 0:01:18]}  Qd7 {[%clk 0:00:27]} 32. Qb7 {[%clk 0:01:12]} 1-0


[Site "https://www.chess.com"]

[Event "Titled Tuesday Blitz November 14 Late 2023"]
[White "Aarakan, J"]
[Black "Marchesich, Giovanni"]
[WhiteFideId "9946276"]
[BlackFideId "2824790"]
[WhiteElo "2236"]
[BlackElo "2397"]
[Result "1/2-1/2"]
[Round "8"]
[TimeControl "180+1"]
[Date "2023.11.14"]
[WhiteClock "0:01:03"]
[BlackClock "0:01:20"]
[Board "101"]

1. e4 {[%clk 0:03:00]}  e5 {[%clk 0:02:59]} 2. Nf3 {[%clk 0:03:00]}  d5 {[%clk 0:02:59]} 3. Nxe5 {[%clk 0:02:56]}  Bd6 {[%clk 0:02:59]} 4. d4 {[%clk 0:02:56]}  dxe4 {[%clk 0:02:59]} 5. Bc4 {[%clk 0:02:54]}  Bxe5 {[%clk 0:03:00]} 6. dxe5 {[%clk 0:02:55]}  Qxd1+ {[%clk 0:03:00]} 7. Kxd1 {[%clk 0:02:55]}  Nc6 {[%clk 0:02:59]} 8. Bf4 {[%clk 0:02:50]}  Nge7 {[%clk 0:02:59]} 9. Re1 {[%clk 0:02:50]}  Bf5 {[%clk 0:02:56]} 10. Nc3 {[%clk 0:02:42]}  Ng6 {[%clk 0:02:56]} 11. Bg3 {[%clk 0:02:35]}  Ncxe5 {[%clk 0:02:56]} 12. Bb3 {[%clk 0:02:30]}  O-O-O+ {[%clk 0:02:52]} 13. Kc1 {[%clk 0:02:30]}  Rhe8 {[%clk 0:02:48]} 14. h4 {[%clk 0:02:27]}  h5 {[%clk 0:02:34]} 15. Nd5 {[%clk 0:02:22]}  Be6 {[%clk 0:02:24]} 16. Nf4 {[%clk 0:02:12]}  Bxb3 {[%clk 0:02:18]} 17. axb3 {[%clk 0:02:12]}  Kb8 {[%clk 0:02:02]} 18. Nxh5 {[%clk 0:02:10]}  f5 {[%clk 0:01:51]} 19. Bxe5 {[%clk 0:02:09]}  Rxe5 {[%clk 0:01:49]} 20. Nxg7 {[%clk 0:02:09]}  f4 {[%clk 0:01:46]} 21. Ra4 {[%clk 0:02:06]}  e3 {[%clk 0:01:42]} 22. fxe3 {[%clk 0:02:02]}  fxe3 {[%clk 0:01:43]} 23. h5 {[%clk 0:01:57]}  Nf8 {[%clk 0:01:43]} 24. g4 {[%clk 0:01:54]}  Nh7 {[%clk 0:01:36]} 25. Nf5 {[%clk 0:01:53]}  e2 {[%clk 0:01:34]} 26. Rf4 {[%clk 0:01:42]}  Red5 {[%clk 0:01:30]} 27. Ne3 {[%clk 0:01:36]}  Ra5 {[%clk 0:01:23]} 28. Kb1 {[%clk 0:01:29]}  Re5 {[%clk 0:01:21]} 29. Rxe2 {[%clk 0:01:21]}  Rde8 {[%clk 0:01:21]} 30. Rf3 {[%clk 0:01:06]}  Ng5 {[%clk 0:01:20]} 31. Rg3 {[%clk 0:01:06]}  Ne4 {[%clk 0:01:20]} 32. Rf3 {[%clk 0:01:05]}  Ng5 {[%clk 0:01:20]} 33. Rg3 {[%clk 0:01:05]}  Ne4 {[%clk 0:01:19]} 34. Rf3 {[%clk 0:01:03]}  Ng5 {[%clk 0:01:20]} 1/2-1/2


[Site "https://www.chess.com"]

[Event "Titled Tuesday Blitz November 14 Late 2023"]
[White "RodokininEV"]
[Black "Minina, Veronika"]
[BlackFideId "4174780"]
[WhiteElo "2493"]
[BlackElo "2278"]
[Result "1-0"]
[Round "8"]
[TimeControl "180+1"]
[Date "2023.11.14"]
[WhiteClock "0:01:21"]
[BlackClock "0:00:14"]
[Board "102"]

1. d4 {[%clk 0:03:00]}  Nf6 {[%clk 0:02:52]} 2. c4 {[%clk 0:03:01]}  g6 {[%clk 0:02:51]} 3. Nc3 {[%clk 0:03:01]}  Bg7 {[%clk 0:02:51]} 4. Nf3 {[%clk 0:03:01]}  d6 {[%clk 0:02:50]} 5. e4 {[%clk 0:03:01]}  O-O {[%clk 0:02:51]} 6. Be2 {[%clk 0:03:01]}  Bg4 {[%clk 0:02:49]} 7. Be3 {[%clk 0:03:00]}  Nfd7 {[%clk 0:02:50]} 8. Ng1 {[%clk 0:03:00]}  Bxe2 {[%clk 0:02:48]} 9. Ngxe2 {[%clk 0:03:01]}  c5 {[%clk 0:02:48]} 10. O-O {[%clk 0:02:57]}  cxd4 {[%clk 0:02:46]} 11. Bxd4 {[%clk 0:02:57]}  Nc6 {[%clk 0:02:47]} 12. Bxg7 {[%clk 0:02:55]}  Kxg7 {[%clk 0:02:47]} 13. Rc1 {[%clk 0:02:54]}  a5 {[%clk 0:02:40]} 14. b3 {[%clk 0:02:54]}  Nc5 {[%clk 0:02:39]} 15. Nd4 {[%clk 0:02:36]}  Kg8 {[%clk 0:02:30]} 16. Kh1 {[%clk 0:02:34]}  Qb6 {[%clk 0:02:15]} 17. Nd5 {[%clk 0:02:25]}  Qd8 {[%clk 0:02:13]} 18. f3 {[%clk 0:02:24]}  a4 {[%clk 0:02:00]} 19. b4 {[%clk 0:02:15]}  Nxd4 {[%clk 0:01:54]} 20. Qxd4 {[%clk 0:02:16]}  Ne6 {[%clk 0:01:54]} 21. Qd3 {[%clk 0:02:05]}  Nc7 {[%clk 0:01:53]} 22. Nc3 {[%clk 0:02:00]}  Ne6 {[%clk 0:01:45]} 23. Qe3 {[%clk 0:01:52]}  Qd7 {[%clk 0:01:36]} 24. Rfd1 {[%clk 0:01:46]}  Qc6 {[%clk 0:01:17]} 25. Nd5 {[%clk 0:01:44]}  Rfe8 {[%clk 0:01:16]} 26. a3 {[%clk 0:01:37]}  Rac8 {[%clk 0:01:14]} 27. h3 {[%clk 0:01:36]}  b5 {[%clk 0:01:03]} 28. cxb5 {[%clk 0:01:32]}  Qb7 {[%clk 0:00:52]} 29. b6 {[%clk 0:01:29]}  Nf8 {[%clk 0:00:24]} 30. Rc7 {[%clk 0:01:22]}  Rxc7 {[%clk 0:00:23]} 31. bxc7 {[%clk 0:01:23]}  e6 {[%clk 0:00:21]} 32. Nf6+ {[%clk 0:01:21]}  Kh8 {[%clk 0:00:14]} 33. Nxe8 {[%clk 0:01:21]} 1-0


[Site "https://www.chess.com"]

[Event "Titled Tuesday Blitz November 14 Late 2023"]
[White "Buchenau, Frank"]
[Black "Broca Jimenez, Fernando"]
[WhiteFideId "4604350"]
[BlackFideId "5104742"]
[WhiteElo "2405"]
[BlackElo "2206"]
[Result "1-0"]
[Round "8"]
[TimeControl "180+1"]
[Date "2023.11.14"]
[WhiteClock "0:01:22"]
[BlackClock "0:00:41"]
[Board "103"]

1. e4 {[%clk 0:02:59]}  c5 {[%clk 0:02:59]} 2. Nf3 {[%clk 0:02:57]}  d6 {[%clk 0:02:59]} 3. Bb5+ {[%clk 0:02:55]}  Nd7 {[%clk 0:02:57]} 4. O-O {[%clk 0:02:55]}  g6 {[%clk 0:02:57]} 5. Re1 {[%clk 0:02:54]}  Bg7 {[%clk 0:02:57]} 6. c3 {[%clk 0:02:54]}  Nf6 {[%clk 0:02:51]} 7. d4 {[%clk 0:02:54]}  O-O {[%clk 0:02:43]} 8. e5 {[%clk 0:02:52]}  dxe5 {[%clk 0:02:40]} 9. dxe5 {[%clk 0:02:52]}  Ng4 {[%clk 0:02:40]} 10. e6 {[%clk 0:02:51]}  fxe6 {[%clk 0:02:40]} 11. Qe2 {[%clk 0:02:20]}  Nb6 {[%clk 0:02:15]} 12. Ng5 {[%clk 0:02:10]}  e5 {[%clk 0:02:08]} 13. Bc4+ {[%clk 0:01:41]}  e6 {[%clk 0:00:54]} 14. Qxg4 {[%clk 0:01:38]}  Nxc4 {[%clk 0:00:51]} 15. Qxc4 {[%clk 0:01:37]}  Qe7 {[%clk 0:00:50]} 16. Be3 {[%clk 0:01:34]}  b6 {[%clk 0:00:49]} 17. Na3 {[%clk 0:01:25]}  Bb7 {[%clk 0:00:49]} 18. Qxe6+ {[%clk 0:01:23]}  Qxe6 {[%clk 0:00:46]} 19. Nxe6 {[%clk 0:01:24]}  Rfe8 {[%clk 0:00:45]} 20. Nc7 {[%clk 0:01:23]}  Rad8 {[%clk 0:00:41]} 21. Nxe8 {[%clk 0:01:23]}  Rxe8 {[%clk 0:00:41]} 22. Rad1 {[%clk 0:01:22]} 1-0


[Site "https://www.chess.com"]

[Event "Titled Tuesday Blitz November 14 Late 2023"]
[White "Darko-Dimitrijevic"]
[Black "Su, Dion"]
[BlackFideId "2029731"]
[WhiteElo "2191"]
[BlackElo "2395"]
[Result "0-1"]
[Round "8"]
[TimeControl "180+1"]
[Date "2023.11.14"]
[WhiteClock "0:00:43"]
[BlackClock "0:01:36"]
[Board "104"]

1. e4 {[%clk 0:03:00]}  e6 {[%clk 0:02:59]} 2. d4 {[%clk 0:03:00]}  d5 {[%clk 0:02:59]} 3. exd5 {[%clk 0:02:59]}  exd5 {[%clk 0:02:59]} 4. Nf3 {[%clk 0:02:58]}  Bd6 {[%clk 0:02:58]} 5. Bd3 {[%clk 0:02:53]}  Ne7 {[%clk 0:02:58]} 6. O-O {[%clk 0:02:53]}  Nbc6 {[%clk 0:02:57]} 7. Bg5 {[%clk 0:02:50]}  f6 {[%clk 0:02:54]} 8. Bh4 {[%clk 0:02:49]}  Bg4 {[%clk 0:02:54]} 9. h3 {[%clk 0:02:48]}  Bh5 {[%clk 0:02:54]} 10. c3 {[%clk 0:02:46]}  Qd7 {[%clk 0:02:54]} 11. Nbd2 {[%clk 0:02:37]}  O-O-O {[%clk 0:02:54]} 12. Bg3 {[%clk 0:02:33]}  g5 {[%clk 0:02:46]} 13. Bxd6 {[%clk 0:02:25]}  Qxd6 {[%clk 0:02:46]} 14. b4 {[%clk 0:02:18]}  Rdg8 {[%clk 0:02:40]} 15. b5 {[%clk 0:02:04]}  Nd8 {[%clk 0:02:39]} 16. Qa4 {[%clk 0:01:59]}  g4 {[%clk 0:02:28]} 17. hxg4 {[%clk 0:01:53]}  Rxg4 {[%clk 0:02:27]} 18. Nh2 {[%clk 0:01:36]}  Rg7 {[%clk 0:02:02]} 19. Kh1 {[%clk 0:01:18]}  Bg6 {[%clk 0:01:50]} 20. Be2 {[%clk 0:01:04]}  Kb8 {[%clk 0:01:49]} 21. Ndf3 {[%clk 0:00:59]}  Ne6 {[%clk 0:01:45]} 22. g3 {[%clk 0:00:56]}  h5 {[%clk 0:01:45]} 23. Nh4 {[%clk 0:00:54]}  Be4+ {[%clk 0:01:45]} 24. f3 {[%clk 0:00:43]}  Qxg3 {[%clk 0:01:36]} 0-1


[Site "https://www.chess.com"]

[Event "Titled Tuesday Blitz November 14 Late 2023"]
[White "Kuegel, Tobias"]
[Black "Novikova, Margarita"]
[WhiteFideId "4636295"]
[BlackFideId "14109689"]
[WhiteElo "2358"]
[BlackElo "2172"]
[Result "0-1"]
[Round "8"]
[TimeControl "180+1"]
[Date "2023.11.14"]
[WhiteClock "0:00:00"]
[BlackClock "0:00:43"]
[Board "107"]

1. e4 {[%clk 0:03:00]}  d5 {[%clk 0:02:59]} 2. exd5 {[%clk 0:02:51]}  Qxd5 {[%clk 0:03:00]} 3. Nc3 {[%clk 0:02:51]}  Qd6 {[%clk 0:03:00]} 4. Nf3 {[%clk 0:02:47]}  Nf6 {[%clk 0:03:00]} 5. d4 {[%clk 0:02:45]}  c6 {[%clk 0:03:00]} 6. g3 {[%clk 0:02:45]}  Bg4 {[%clk 0:03:00]} 7. Bg2 {[%clk 0:02:45]}  Nbd7 {[%clk 0:02:59]} 8. O-O {[%clk 0:02:39]}  e6 {[%clk 0:02:59]} 9. h3 {[%clk 0:02:40]}  Bh5 {[%clk 0:02:58]} 10. a3 {[%clk 0:02:29]}  Qc7 {[%clk 0:02:57]} 11. Re1 {[%clk 0:02:24]}  Bd6 {[%clk 0:02:56]} 12. d5 {[%clk 0:02:21]}  cxd5 {[%clk 0:02:56]} 13. Nxd5 {[%clk 0:02:21]}  Nxd5 {[%clk 0:02:55]} 14. Qxd5 {[%clk 0:02:22]}  Bg6 {[%clk 0:02:48]} 15. Nh4 {[%clk 0:02:02]}  Rb8 {[%clk 0:02:42]} 16. Nxg6 {[%clk 0:02:00]}  hxg6 {[%clk 0:02:42]} 17. Bg5 {[%clk 0:01:26]}  O-O {[%clk 0:02:41]} 18. Qd2 {[%clk 0:01:23]}  Nb6 {[%clk 0:02:38]} 19. b3 {[%clk 0:01:19]}  f6 {[%clk 0:02:28]} 20. Rxe6 {[%clk 0:01:10]}  Rbd8 {[%clk 0:02:27]} 21. Be3 {[%clk 0:00:50]}  Be5 {[%clk 0:02:18]} 22. Bxb6 {[%clk 0:00:44]}  axb6 {[%clk 0:02:14]} 23. Bd5 {[%clk 0:00:44]}  Qc5 {[%clk 0:01:46]} 24. Rxe5+ {[%clk 0:00:37]}  Kh7 {[%clk 0:01:46]} 25. b4 {[%clk 0:00:15]}  Qd6 {[%clk 0:01:45]} 26. Re6 {[%clk 0:00:10]}  Qxe6 {[%clk 0:01:41]} 27. c4 {[%clk 0:00:09]}  Qe5 {[%clk 0:01:39]} 28. Re1 {[%clk 0:00:09]}  Qc7 {[%clk 0:01:36]} 29. Re4 {[%clk 0:00:08]}  g5 {[%clk 0:01:34]} 30. Qe2 {[%clk 0:00:06]}  Kh6 {[%clk 0:01:22]} 31. h4 {[%clk 0:00:06]}  g6 {[%clk 0:01:06]} 32. Qe3 {[%clk 0:00:06]}  Rd7 {[%clk 0:00:55]} 33. Re6 {[%clk 0:00:00]}  Rff7 {[%clk 0:00:43]} 0-1


[Site "https://www.chess.com"]